bitfinex/quotes_ETHUSD_20241204
["timestamp","ask_amount","ask_price","bid_price","bid_amount"]
[1733304910493,1.3727814,3722.3,3722.2,2.68658]
[1733304913091,1.3727814,3722.3,3721.9,0.7518]
[1733304913248,0.55,3722.1,3721.5,0.7792]
[1733304913591,0.55,3721.9,3721.4,2.68709]
[1733304913792,0.55,3721.9,3721.2,0.7792]
[1733304913793,0.55,3721.7,3721.2,0.7792]
[1733304914098,0.65478382,3721.6,3721.3,2.68723]
[1733304914393,0.65478382,3721.5,3721.3,2.68723]
[1733304914559,0.65478382,3721.5,3720.4,2.68781]
[1733304914560,0.25183993,3721.4,3720.9,0.7715]
[1733304914765,1.20397231,3721.3,3720.9,2.68749]
[1733304914962,0.65397231,3721.2,3720.9,2.68749]
[1733304915163,0.65397231,3721.1,3721.0,2.68744]
[1733304915875,0.65397231,3721.1,3721.0,5.68744]
[1733304916108,0.25183993,3721.1,3721.0,5.68744]
[1733304918778,0.25183993,3721.1,3720.8,2.68752]
[1733304919102,0.55,3721.5,3720.9,3.0]
[1733304919311,0.55,3721.3,3720.9,2.68751]
[1733304919609,0.25079766,3721.2,3720.7,3.2313366]
[1733304919811,0.25079766,3721.1,3720.8,3.0]
[1733304920014,0.25079766,3721.0,3720.8,3.0]
[1733304920177,0.40119744,3721.2,3720.8,5.68757]
[1733304920382,0.25073481,3721.1,3720.9,2.68751]
[1733304920614,0.25073481,3721.0,3720.9,5.68751]
[1733304921195,0.25073481,3721.0,3720.9,2.68751]
[1733304922312,0.25057787,3721.0,3720.9,2.68751]
[1733304922716,0.25057787,3721.0,3720.7,3.2313366]
[1733304923027,0.25057787,3720.9,3720.8,2.68759]
[1733304924327,0.55,3721.4,3721.0,2.68739]
[1733304924527,0.65108483,3721.3,3721.0,2.68739]
[1733304924732,0.25041535,3721.2,3721.0,2.68739]
[1733304924929,0.25041535,3721.1,3721.0,2.68739]
[1733304925316,0.55,3721.4,3721.0,2.68739]
[1733304925518,0.25039629,3721.3,3721.0,2.68739]
[1733304925859,0.25039629,3721.2,3721.0,2.68739]
[1733304926018,0.25039629,3721.2,3720.8,3.49209]
[1733304926220,0.25039629,3721.1,3720.8,3.49209]
[1733304926420,0.55,3721.4,3720.8,3.49209]
[1733304926421,0.25039629,3721.0,3720.8,3.49209]
[1733304926620,0.40062925,3721.2,3720.8,3.49209]
[1733304926864,0.25039905,3721.1,3720.8,3.49209]
[1733304927017,0.25039905,3721.0,3720.8,3.49209]
[1733304927222,0.55,3721.6,3720.8,3.49209]
[1733304927417,0.55,3721.4,3720.8,2.68759]
[1733304927662,0.55,3721.2,3720.8,2.68759]
[1733304927845,0.25038901,3721.1,3720.8,2.68759]
[1733304928018,0.25038901,3721.0,3720.8,2.68759]
[1733304928361,0.55,3721.2,3720.8,2.68759]
[1733304928523,0.25039611,3721.1,3720.8,2.68759]
[1733304928737,0.25039611,3721.0,3720.8,2.68759]
[1733304929055,0.55,3721.2,3720.8,2.68759]
[1733304929221,0.25043283,3721.1,3720.8,2.68759]
[1733304929418,0.25043283,3721.0,3720.8,2.68759]
[1733304929644,0.25043283,3720.9,3720.8,2.68759]
[1733304930459,0.55,3721.5,3721.0,2.68742]
[1733304930661,0.55,3721.3,3721.0,2.68742]
[1733304930850,0.25042781,3721.2,3721.0,2.68742]
[1733304931024,0.25042781,3721.1,3721.0,2.68742]
[1733304932711,0.25053066,3721.1,3721.0,2.68742]
[1733304934420,0.65160281,3721.1,3721.0,2.68742]
[1733304934774,0.25053066,3721.1,3721.0,3.994423]
[1733304934981,0.4175511,3722.1,3721.6,2.68698]
[1733304935185,0.81974687,3722.0,3721.3,2.68723]
[1733304935377,0.81974687,3722.0,3721.9,2.68679]
[1733304935378,0.16807114,3722.0,3721.9,2.68679]
[1733304935575,0.65185677,3722.0,3721.9,2.68679]
[1733304935804,0.65185677,3722.0,3721.9,3.30380153]
[1733304936131,0.65182383,3722.0,3721.9,2.68679]
[1733304938111,0.25070084,3722.0,3721.9,2.68679]
[1733304938480,0.65238443,3722.0,3721.9,2.68679]
[1733304938678,0.65238443,3722.0,3721.9,3.47699]
[1733304938888,0.25070084,3722.0,3721.9,3.47699]
[1733304939092,0.25070084,3722.0,3721.9,4.14748311]
[1733304939295,0.25070084,3722.0,3721.9,3.47699]
[1733304939493,0.65274316,3722.0,3721.9,2.68679]
[1733304940074,0.82077226,3722.0,3721.7,2.68693]
[1733304940274,0.65274316,3721.9,3721.7,2.68693]
[1733304940501,0.65274316,3721.8,3721.7,2.68693]
[1733304942281,0.65274316,3721.8,3721.7,5.68693]
[1733304945733,0.65274316,3721.8,3721.7,6.65799881]
[1733304945934,0.25105506,3721.8,3721.7,7.45689881]
[1733304946309,0.16800861,3722.6,3722.5,2.68634]
[1733304946639,0.82083011,3722.6,3722.5,2.68634]
[1733304947334,0.6528215,3722.6,3722.5,2.68634]
[1733304947509,0.6528215,3722.6,3722.5,6.304229]
[1733304947713,0.25108519,3722.6,3722.5,7.127429]
[1733304948097,0.41859947,3723.8,3723.6,2.68552]
[1733304948301,2.51897621,3724.0,3723.6,2.68552]
[1733304948302,0.40151298,3723.7,3723.6,2.68552]
[1733304949339,0.40151298,3723.9,3723.6,2.68552]
[1733304949514,0.41859947,3724.4,3723.6,2.68552]
[1733304949515,0.40151298,3723.8,3723.6,2.68552]
[1733304949709,0.40151298,3723.7,3723.4,0.8232]
[1733304949924,0.71796901,3724.2,3723.4,2.68569]
[1733304950138,0.79512279,3724.1,3723.4,2.68569]
[1733304950316,0.40083458,3724.0,3723.4,2.68569]
[1733304950512,0.2263192,3724.1,3723.4,2.68569]
[1733304950513,0.40083458,3723.9,3723.4,2.68569]
[1733304950702,0.40083458,3723.8,3723.4,2.68569]
[1733304950905,0.40083458,3723.7,3723.5,2.68562]
[1733304951107,0.71796901,3724.2,3723.5,2.68562]
[1733304951345,0.40061587,3724.1,3723.5,2.68562]
[1733304951643,0.40061587,3724.0,3723.1,0.8292]
[1733304951809,0.40061587,3723.9,3723.5,2.68561]
[1733304952007,0.40061587,3723.8,3723.1,0.8292]
[1733304952325,0.40061587,3724.1,3723.7,2.6855]
[1733304952518,0.40061587,3724.0,3723.7,2.6855]
[1733304952732,0.40061587,3724.1,3723.5,2.68562]
[1733304953053,0.40026425,3724.0,3723.3,2.68577]
[1733304953201,0.40026425,3723.9,3723.3,3.0]
[1733304953407,0.40026425,3723.9,3723.5,2.68563]
[1733304953607,0.55,3724.1,3723.5,2.68563]
[1733304953839,0.40026425,3724.0,3723.5,2.68563]
[1733304954147,0.40026425,3723.9,3723.3,6.41904798]
[1733304954309,0.95026425,3723.8,3723.2,2.53289607]
[1733304954504,0.40026425,3723.7,3723.2,2.53289607]
[1733304956158,0.40026425,3723.7,3723.3,2.68578]
[1733304956821,0.40026425,3723.7,3723.2,2.53289607]
[1733304957355,0.40026425,3723.7,3723.2,5.21874607]
[1733304957576,0.40026425,3723.7,3723.2,2.53289607]
[1733304957872,0.40026425,3724.1,3723.6,2.53289607]
[1733304958173,0.40026425,3724.0,3723.7,2.68549]
[1733304958382,0.40026425,3723.9,3723.7,2.68549]
[1733304958671,0.40026425,3724.3,3723.6,2.53289607]
[1733304958833,0.40026425,3724.2,3723.6,5.21845607]
[1733304959029,0.40026425,3724.1,3723.6,5.21845607]
[1733304959264,0.40026425,3724.0,3723.6,5.21845607]
[1733304959472,0.81720617,3724.4,3723.6,5.21845607]
[1733304959640,0.40026425,3724.3,3723.6,5.21845607]
[1733304959843,0.58489954,3724.5,3723.6,5.21845607]
[1733304959844,0.40019243,3724.2,3723.6,2.53289607]
[1733304960032,3.08541243,3724.1,3723.3,3.0]
[1733304960235,3.33560474,3724.0,3723.2,2.53289607]
[1733304960556,0.65032474,3723.9,3723.0,3.48764]
[1733304960761,3.33575474,3723.8,3722.8,5.21897607]
[1733304961076,2.68565,3723.5,3722.8,2.53289607]
[1733304961379,1.8266413,3724.2,3722.4,0.8152]
[1733304961380,2.68579,3723.3,3722.4,3.34809607]
[1733304961537,0.65032474,3723.2,3722.4,2.53289607]
[1733304961877,0.65032474,3723.1,3722.4,2.53289607]
[1733304962169,0.65032474,3723.0,3722.4,2.53289607]
[1733304962374,0.65032474,3722.9,3722.2,2.68658]
[1733304962559,0.65032474,3722.8,3722.2,2.68658]
[1733304962758,0.65032474,3722.7,3722.2,2.68658]
[1733304962931,0.65032474,3722.6,3722.2,2.68658]
[1733304963135,0.25013231,3722.5,3722.2,2.68658]
[1733304963445,0.25013231,3722.4,3722.2,2.88307407]
[1733304963647,0.25013231,3722.3,3722.2,2.88307407]
[1733304963860,0.25013231,3722.3,3722.2,0.350178]
[1733304964066,0.25013231,3722.3,3722.2,2.53289607]
[1733304965083,0.25013231,3722.3,3722.2,5.21947607]
[1733304966192,0.25013231,3722.3,3722.2,2.53289607]
[1733304967658,0.65135102,3722.3,3722.2,2.53289607]
[1733304967986,0.65135102,3722.3,3721.8,3.32289607]
[1733304968292,0.65135102,3722.2,3721.9,2.68673]
[1733304968451,0.25013231,3722.1,3721.9,2.68673]
[1733304968653,0.25013231,3722.0,3721.9,2.68673]
[1733304969184,0.25013231,3722.0,3721.8,2.53289607]
[1733304969399,0.25013231,3721.9,3721.4,2.53289607]
[1733304969548,2.68611,3722.9,3721.4,2.53289607]
[1733304969549,0.25013231,3721.8,3721.4,2.53289607]
[1733304969748,0.41686711,3722.5,3721.4,2.53289607]
[1733304969749,0.6513518,3721.7,3721.4,2.53289607]
[1733304969966,0.6513518,3721.6,3721.4,2.50899607]
[1733304970167,0.6513518,3721.5,3720.9,2.53289607]
[1733304970403,0.41686711,3722.1,3720.6,0.8147]
[1733304970404,0.6513518,3721.4,3720.6,0.8147]
[1733304970697,0.6513518,3721.3,3720.6,0.8147]
[1733304970865,0.6513518,3721.2,3720.5,5.22067607]
[1733304971200,0.6513518,3721.1,3720.5,5.22067607]
[1733304971405,0.16795138,3721.6,3720.5,5.22067607]
[1733304971406,0.25013231,3721.0,3720.5,2.53289607]
[1733304971558,0.25013231,3720.9,3720.5,5.22067607]
[1733304971894,0.40121949,3721.3,3720.8,0.52817771]
[1733304972066,0.25060317,3721.2,3720.9,2.53289607]
[1733304972398,2.85484138,3721.8,3721.0,5.68744]
[1733304972399,0.25060317,3721.1,3721.0,5.68744]
[1733304972603,0.55,3722.1,3721.0,3.8111]
[1733304972805,1.01678148,3722.0,3721.0,3.8111]
[1733304972967,0.65136749,3721.9,3721.0,6.49854]
[1733304973308,0.65136749,3721.8,3721.0,3.0]
[1733304973468,0.65136749,3721.7,3721.0,5.6874]
[1733304973669,0.65136749,3721.6,3721.0,5.6874]
[1733304973866,0.25051958,3721.5,3721.0,5.6874]
[1733304974066,0.25051958,3721.4,3721.0,3.0]
[1733304974300,0.36541399,3722.0,3721.0,3.0]
[1733304974301,0.25051958,3721.3,3721.0,5.68744]
[1733304974500,0.36541399,3722.0,3721.0,5.68744]
[1733304974501,0.40084791,3721.6,3721.0,5.68744]
[1733304974701,0.36541399,3722.0,3721.0,5.68744]
[1733304974702,0.25042869,3721.5,3721.0,5.68744]
[1733304975005,0.25042869,3721.4,3721.0,5.68744]
[1733304975307,0.40084791,3721.7,3721.0,5.68744]
[1733304975600,0.36541399,3722.0,3721.0,5.68744]
[1733304975601,0.25037631,3721.6,3721.0,5.68744]
[1733304975809,0.25038009,3721.5,3721.0,5.68744]
[1733304976097,0.25038009,3721.4,3721.0,5.68744]
[1733304976307,0.40060814,3721.9,3721.0,5.68744]
[1733304976508,1.05123064,3721.8,3721.0,5.68744]
[1733304976665,0.25034729,3721.7,3721.0,5.68744]
[1733304976864,0.25034729,3721.6,3721.0,5.68744]
[1733304977062,0.25034729,3721.5,3720.6,3.0]
[1733304977266,0.25034729,3721.4,3720.7,2.68763]
[1733304977605,0.25034729,3721.3,3720.7,2.68763]
[1733304977767,0.25034729,3721.2,3720.6,3.0]
[1733304977967,0.55,3721.5,3720.6,3.0]
[1733304978308,0.5739643,3721.4,3720.6,3.0]
[1733304978495,0.2502613,3721.3,3720.6,3.0]
[1733304978681,0.2502613,3721.2,3720.6,3.0]
[1733304978879,0.2502613,3721.1,3720.6,3.0]
[1733304979209,0.323703,3721.4,3720.6,3.0]
[1733304979410,0.59133373,3721.3,3720.6,3.0]
[1733304979717,0.25021835,3721.2,3720.6,3.0]
[1733304980013,0.25021835,3721.1,3720.6,3.0]
[1733304980214,0.34111538,3721.3,3720.6,3.0]
[1733304980513,0.25021545,3721.2,3720.6,3.0]
[1733304980713,0.25021545,3721.1,3720.6,3.0]
[1733304980916,0.34111538,3721.3,3721.0,0.52563788]
[1733304981079,0.25020998,3721.2,3721.0,0.52563788]
[1733304981407,0.55,3721.5,3721.0,0.52563788]
[1733304981616,0.25024044,3721.4,3721.0,0.52563788]
[1733304981780,0.25024044,3721.3,3721.0,0.52563788]
[1733304982111,0.25024044,3721.2,3721.0,0.52563788]
[1733304982310,0.40036084,3721.6,3721.0,3.21307788]
[1733304982523,0.25028587,3721.5,3721.0,3.23994985]
[1733304982674,0.40045739,3721.9,3721.0,3.21307788]
[1733304982874,0.60069538,3721.8,3721.0,3.21307788]
[1733304983069,0.25026233,3721.7,3721.0,3.21307788]
[1733304983316,0.25026233,3721.6,3721.0,3.21307788]
[1733304983471,0.25026233,3721.5,3721.0,0.52563788]
[1733304983672,0.25032295,3722.0,3721.9,2.68679]
[1733304983877,0.25032295,3722.0,3721.9,5.98458607]
[1733304984123,0.65073189,3722.5,3722.1,2.68664]
[1733304984416,0.2502745,3722.4,3722.1,2.68664]
[1733304984585,0.2502745,3722.4,3721.9,3.29779607]
[1733304984917,0.2502745,3722.3,3721.9,5.98456607]
[1733304985214,0.2502745,3722.2,3721.9,3.29779607]
[1733304985401,0.2502745,3722.1,3721.9,3.29779607]
[1733304985599,0.40045739,3722.5,3721.9,3.29779607]
[1733304985798,2.68608,3722.9,3721.9,3.29779607]
[1733304985974,1.61782918,3722.8,3721.9,5.98457607]
[1733304986175,0.6511304,3722.7,3722.0,2.6867]
[1733304986377,0.6511304,3722.6,3722.2,2.68658]
[1733304986593,0.6511304,3722.5,3722.0,2.68672]
[1733304986801,0.6511304,3722.4,3722.1,2.68661]
[1733304987005,0.6511304,3722.3,3722.2,2.68658]
[1733304987185,0.25043477,3722.3,3722.2,2.68658]
[1733304987374,0.6511304,3722.3,3722.2,2.68658]
[1733304988477,0.6511304,3722.3,3722.2,6.50348]
[1733304988734,0.25043477,3722.3,3722.2,6.50348]
[1733304988931,0.25043477,3722.3,3722.2,7.72118688]
[1733304989217,0.41739128,3723.3,3722.7,2.68621]
[1733304989435,1.23763026,3723.2,3722.7,3.0]
[1733304989721,1.39043774,3723.7,3722.4,3.0]
[1733304989722,1.23763026,3723.1,3722.4,3.0]
[1733304989878,1.23763026,3723.0,3722.4,3.0]
[1733304990078,0.82023898,3722.9,3722.4,3.0]
[1733304990278,0.82023898,3722.8,3722.4,3.0]
[1733304990496,0.41739128,3723.0,3722.3,5.21936607]
[1733304990497,0.82023898,3722.7,3722.3,5.21936607]
[1733304990721,0.65220184,3722.6,3722.3,5.21936607]
[1733304990890,0.65220184,3722.5,3722.3,5.21936607]
[1733304991083,0.65220184,3722.4,3722.3,8.21936607]
[1733304991504,0.65220184,3722.4,3722.3,2.53289607]
[1733304991712,0.65220184,3722.4,3721.9,3.34179607]
[1733304991899,0.65220184,3722.3,3722.1,2.68659]
[1733304992204,0.65220184,3722.2,3722.1,2.68659]
[1733304992821,0.65235589,3722.2,3722.1,2.68659]
[1733304993198,0.65243221,3722.2,3722.1,2.68665]
[1733304995545,0.65243221,3722.2,3722.1,3.91295371]
[1733304995747,0.25093546,3722.2,3722.1,3.91295371]
[1733304996261,0.40150252,3722.5,3722.2,3.8175]
[1733304996446,0.41822578,3723.2,3722.4,5.53289607]
[1733304996447,0.16799721,3723.1,3722.4,5.53289607]
[1733304996654,0.82036608,3723.0,3722.8,5.21902607]
[1733304996815,0.82036608,3722.9,3722.8,5.21902607]
[1733304997008,0.65236887,3722.9,3722.8,2.53289607]
[1733304997212,0.82036608,3722.9,3722.4,2.53289607]
[1733304997409,1.23859186,3722.8,3722.4,2.53289607]
[1733304997641,0.82036608,3722.7,3722.4,2.53289607]
[1733304997805,0.82036608,3722.6,3722.4,2.53289607]
[1733304998151,0.82036608,3722.5,3722.4,2.53289607]
[1733304998365,0.65236887,3722.5,3722.4,5.21932607]
[1733304999948,0.65236887,3722.5,3722.4,6.01260397]
[1733305000135,0.2509111,3722.5,3722.4,9.80710397]
[1733305000512,0.16799721,3723.3,3723.0,2.686]
[1733305000842,0.82007687,3723.2,3723.0,2.686]
[1733305001044,0.65207966,3723.1,3723.0,3.4933]
[1733305004222,0.16797524,3723.5,3723.0,4.36453461]
[1733305004451,0.65172879,3723.4,3723.0,3.8073]
[1733305004639,0.65172879,3723.3,3723.0,5.68599]
[1733305004831,0.65172879,3723.2,3723.0,5.68599]
[1733305005047,0.65172879,3723.1,3723.0,5.68599]
[1733305005272,0.65172879,3723.1,3723.0,2.68599]
[1733305007732,0.65172879,3723.1,3722.9,2.53289607]
[1733305008028,0.65172879,3723.0,3722.9,5.21896607]
[1733305009037,0.65172879,3723.0,3722.9,2.53289607]
[1733305009641,0.65172879,3723.0,3722.4,1.35256828]
[1733305009642,0.65172879,3723.0,3722.5,2.53289607]
[1733305009840,0.65172879,3722.9,3722.5,2.53289607]
[1733305010066,0.65172879,3722.8,3722.6,2.68628]
[1733305010277,0.40139274,3722.7,3722.6,2.68628]
[1733305010576,0.6522188,3722.7,3722.5,2.53289607]
[1733305010874,0.25066492,3722.6,3722.5,5.21925607]
[1733305013072,0.6526173,3722.6,3722.5,5.21925607]
[1733305013672,0.6526173,3722.6,3722.5,2.53289607]
[1733305013830,0.82062519,3722.6,3722.5,2.53289607]
[1733305014028,0.82062519,3722.6,3722.1,2.53289607]
[1733305014234,0.6526173,3722.5,3722.2,2.68652]
[1733305014431,0.6526173,3722.4,3722.3,2.68651]
[1733305016934,0.6526173,3722.4,3722.1,2.53289607]
[1733305016935,0.65370925,3722.4,3722.2,2.68654]
[1733305017135,0.25142663,3722.3,3722.2,2.68654]
[1733305017371,0.65370925,3722.3,3722.2,2.68654]
[1733305018776,0.65370925,3722.3,3722.2,3.61223617]
[1733305018976,0.25142663,3722.3,3722.2,3.61223617]
[1733305019349,0.65376926,3722.3,3722.2,3.61223617]
[1733305020063,0.25142663,3722.3,3722.2,3.61223617]
[1733305020736,0.65374942,3722.3,3722.2,3.61223617]
[1733305023229,0.65374942,3722.3,3722.2,2.68654]
[1733305023389,0.82176308,3722.3,3722.2,2.68654]
[1733305024388,0.65374942,3722.3,3722.2,2.68654]
[1733305025929,0.65374942,3722.3,3722.2,4.02770251]
[1733305026129,0.41904439,3723.2,3722.7,0.55]
[1733305026445,0.40239188,3723.1,3723.0,0.55]
[1733305026612,1.54566796,3723.7,3722.9,0.55]
[1733305026815,0.57030198,3723.6,3723.4,2.53289607]
[1733305027003,0.57030198,3723.5,3723.4,2.53289607]
[1733305027501,0.57030198,3723.5,3723.4,5.21860607]
[1733305027729,0.40234222,3723.5,3723.4,10.14989668]
[1733305027931,1.54566796,3724.3,3723.9,2.68532]
[1733305028135,0.40220467,3724.2,3724.1,2.68521]
[1733305028804,0.16792263,3724.6,3724.4,2.68496]
[1733305029035,1.12662357,3724.7,3724.4,5.21785607]
[1733305029036,0.56976035,3724.5,3724.4,5.21785607]
[1733305029248,0.40183772,3724.5,3724.4,5.21785607]
[1733305032130,0.40183772,3724.8,3724.4,5.21785607]
[1733305032349,0.40183772,3724.7,3724.4,2.53289607]
[1733305032509,0.40183772,3724.6,3724.4,2.53289607]
[1733305032744,0.40183772,3724.5,3724.4,5.21788607]
[1733305032985,0.40183772,3724.8,3724.4,5.21788607]
[1733305033143,0.40183772,3724.7,3724.4,5.21788607]
[1733305033548,0.40183772,3724.6,3724.4,2.53289607]
[1733305033782,0.40183772,3724.9,3724.4,2.53289607]
[1733305034086,1.33010314,3724.8,3724.4,2.53289607]
[1733305034256,0.40183772,3724.7,3724.4,2.53289607]
[1733305034444,0.40183772,3724.9,3724.4,2.53289607]
[1733305034779,0.40183772,3724.8,3724.4,5.21786607]
[1733305034982,0.40183772,3724.7,3724.4,5.21786607]
[1733305035280,0.40183772,3725.0,3724.4,5.21786607]
[1733305035485,0.40183772,3724.9,3724.4,5.21786607]
[1733305035686,0.40183772,3724.8,3724.4,2.53289607]
[1733305035900,0.40183772,3725.0,3724.4,2.53289607]
[1733305036186,0.40183772,3724.9,3724.5,2.6849]
[1733305036484,0.40183772,3725.0,3724.5,2.6849]
[1733305036693,0.40183772,3724.9,3724.6,2.68482]
[1733305036847,0.40183772,3725.0,3724.7,2.68477]
[1733305037177,0.40183772,3725.1,3724.8,2.6847]
[1733305037544,0.40183772,3725.2,3724.8,2.6847]
[1733305037745,0.40183772,3725.1,3724.6,2.68483]
[1733305038048,0.40183772,3725.3,3724.8,3.20888343]
[1733305038250,0.65202597,3725.2,3724.8,3.20888343]
[1733305038587,0.25018825,3725.1,3724.8,0.52419343]
[1733305038901,0.25018825,3725.0,3724.8,0.52419343]
[1733305039083,0.25018825,3724.9,3724.8,0.52419343]
[1733305039944,0.2500794,3724.9,3724.8,0.52419343]
[1733305042802,0.2500794,3725.2,3725.1,2.68449]
[1733305043012,0.58470929,3725.8,3725.1,2.68449]
[1733305043013,0.2500794,3725.5,3725.2,2.6844]
[1733305043193,0.2500794,3725.4,3725.3,2.68434]
[1733305043362,0.2500794,3725.8,3725.1,3.32009607]
[1733305043565,0.2500794,3725.7,3725.1,6.00451607]
[1733305043787,2.5111151,3726.2,3725.2,2.68441]
[1733305044091,0.28015778,3725.7,3725.1,3.98652895]
[1733305044273,3.80476685,3726.2,3725.1,3.98652895]
[1733305044481,1.12104685,3726.3,3725.1,3.98652895]
[1733305044703,1.12104685,3726.3,3724.7,3.30179607]
[1733305044704,2.68398,3725.8,3724.7,3.30179607]
[1733305044905,2.68408,3725.7,3724.7,3.30179607]
[1733305045268,1.12104685,3725.9,3724.7,2.53289607]
[1733305045581,2.04732647,3725.9,3724.7,2.53289607]
[1733305045779,2.2420937,3726.3,3724.2,3.0]
[1733305045780,1.12104685,3725.7,3724.3,2.53289607]
[1733305045983,1.12104685,3725.7,3724.2,0.7801]
[1733305045984,2.68469,3724.9,3724.2,0.7801]
[1733305046309,2.68469,3724.9,3723.9,2.53289607]
[1733305046310,2.68462,3725.0,3723.9,3.31299607]
[1733305046471,3.80531685,3725.4,3723.9,3.31299607]
[1733305046472,2.68466,3724.9,3723.9,3.31299607]
[1733305046673,0.77284032,3725.6,3723.9,3.31299607]
[1733305046872,2.68476,3724.8,3723.9,3.31299607]
[1733305047207,2.68476,3724.8,3723.9,3.69764348]
[1733305047695,2.68466,3724.9,3723.9,3.69764348]
[1733305047893,2.68451,3725.1,3724.3,2.53289607]
[1733305048216,2.68458,3725.0,3724.3,2.53289607]
[1733305048773,2.68464,3724.9,3724.3,2.53289607]
[1733305049282,2.68464,3724.9,3723.9,1.16474741]
[1733305049283,2.68475,3724.8,3723.9,3.69764348]
[1733305049483,2.68473,3724.8,3723.9,3.69764348]
[1733305050074,1.12020784,3725.1,3723.9,3.69764348]
[1733305050075,2.68478,3724.7,3723.9,3.69764348]
[1733305051004,2.68486,3724.6,3723.9,3.69764348]
[1733305051310,2.68492,3724.5,3723.9,3.69764348]
[1733305051814,2.68478,3724.7,3723.9,3.69764348]
[1733305052904,1.12020784,3725.1,3723.9,3.69764348]
[1733305053111,2.68483,3724.7,3723.9,3.69764348]
[1733305053612,0.28005196,3725.0,3723.9,3.69764348]
[1733305053782,2.68498,3724.5,3723.7,0.8116]
[1733305054395,1.12020784,3724.8,3723.5,2.53289607]
[1733305054870,2.68507,3724.3,3723.5,2.53289607]
[1733305055072,1.12020784,3724.7,3723.5,2.53289607]
[1733305055275,2.68524,3724.1,3723.1,6.5548074]
[1733305055517,1.12020784,3724.4,3723.1,3.8688874]
[1733305055697,2.68529,3724.0,3723.1,3.8688874]
[1733305055905,1.12020784,3724.3,3723.1,3.8688874]
[1733305056273,2.51027469,3724.5,3723.5,2.53289607]
[1733305056504,3.05759226,3724.4,3723.5,2.53289607]
[1733305056814,0.92671356,3724.3,3723.5,2.53289607]
[1733305056983,4.1778001,3724.4,3723.5,2.53289607]
[1733305057180,1.12020784,3724.7,3723.9,2.53289607]
[1733305057502,0.92672478,3724.6,3724.0,0.814]
[1733305057686,3.80484784,3724.9,3724.0,0.814]
[1733305057886,0.92667159,3724.8,3724.0,1.36117062]
[1733305058417,2.68478,3724.7,3724.0,1.36117062]
[1733305058620,0.41852409,3724.5,3724.0,1.36117062]
[1733305058784,0.40178312,3724.4,3724.0,1.36117062]
[1733305059118,0.65289757,3724.3,3724.0,1.36117062]
[1733305059488,0.65289757,3724.2,3724.0,1.36117062]
[1733305059690,0.65289757,3724.1,3724.0,1.36117062]
[1733305062115,0.65289757,3724.1,3724.0,0.814]
[1733305064419,0.65289757,3724.1,3724.0,7.15676582]
[1733305064826,0.25111445,3724.1,3724.0,7.15676582]
[1733305065198,0.40178312,3724.5,3724.0,4.47148582]
[1733305065406,0.41852409,3725.2,3724.7,2.68471]
[1733305065606,0.65256969,3725.1,3725.0,0.809]
[1733305066305,0.65256969,3725.1,3724.9,2.53289607]
[1733305066550,1.12020784,3725.5,3723.8,0.7755]
[1733305066843,1.12020784,3724.6,3723.8,0.7755]
[1733305067144,1.07058225,3724.5,3723.8,0.7755]
[1733305067342,0.65238606,3724.4,3723.8,0.7755]
[1733305067641,0.65238606,3724.3,3723.8,0.7755]
[1733305067845,0.41819619,3724.1,3723.8,0.7755]
[1733305068139,0.8203403,3724.0,3723.8,0.7755]
[1733305068442,0.8203403,3723.9,3723.8,0.7755]
[1733305069147,0.8203403,3723.9,3723.5,3.4533]
[1733305069318,0.8203403,3723.8,3723.5,1.36631961]
[1733305069515,0.8203403,3723.7,3723.5,1.36631961]
[1733305069716,0.8203403,3723.6,3723.5,0.7677]
[1733305070135,0.82061976,3723.6,3723.5,0.7677]
[1733305075419,0.82061976,3723.6,3723.5,3.45334]
[1733305080349,0.65265232,3723.6,3723.5,3.45334]
[1733305080521,0.82060464,3723.6,3723.5,3.45334]
[1733305080720,0.16796347,3723.6,3723.5,3.45334]
[1733305081054,0.82128669,3723.6,3723.5,3.45334]
[1733305081733,0.82128669,3723.6,3723.5,2.68564]
[1733305082827,0.82128669,3723.6,3723.3,3.47936]
[1733305083052,0.82135023,3723.5,3723.3,3.47936]
[1733305083257,0.41926938,3723.4,3723.3,3.47936]
[1733305083458,0.82135023,3723.4,3723.3,3.47936]
[1733305084853,0.65338138,3723.4,3723.3,3.47936]
[1733305085159,0.65338138,3723.4,3723.3,4.15084626]
[1733305086411,0.65338343,3723.4,3723.3,4.15084626]
[1733305088748,0.65338343,3723.4,3722.6,1.075112]
[1733305088946,0.82134444,3723.3,3722.7,0.7597]
[1733305089186,1.12020784,3723.5,3722.7,0.7597]
[1733305089187,0.82134444,3723.2,3722.7,0.7597]
[1733305089397,0.82134444,3723.1,3722.9,2.68605]
[1733305089709,0.82134444,3723.0,3722.9,2.68605]
[1733305090011,0.82134444,3723.0,3722.9,3.82931033]
[1733305091186,0.82134444,3723.0,3722.9,1.14326033]
[1733305091369,0.82134444,3723.0,3722.9,3.82933033]
[1733305093109,1.39615832,3723.2,3723.0,2.68598]
[1733305093289,1.09869023,3723.1,3723.0,2.68598]
[1733305093494,1.33260817,3723.1,3723.0,2.68598]
[1733305093690,1.5838448,3723.1,3723.0,2.68598]
[1733305093926,1.75183499,3723.1,3722.9,1.14326033]
[1733305094221,0.82115455,3723.0,3722.9,1.14326033]
[1733305094588,0.82115455,3723.0,3722.9,3.82933033]
[1733305094921,0.65316436,3723.0,3722.9,3.82933033]
[1733305095225,0.65316436,3723.0,3722.9,5.08333336]
[1733305095586,0.25121706,3723.0,3722.9,5.08333336]
[1733305095787,0.65319078,3723.0,3722.9,3.94007303]
[1733305096012,0.65319078,3723.0,3722.9,5.08333336]
[1733305097216,0.82117123,3723.0,3722.9,5.08333336]
[1733305097421,0.82116994,3723.0,3722.9,5.08333336]
[1733305098704,0.65319078,3723.0,3722.9,5.08333336]
[1733305099091,0.65319078,3723.0,3722.9,8.08333336]
[1733305099619,0.25121706,3723.0,3722.9,8.08333336]
[1733305101924,0.65366736,3723.0,3722.9,6.94007303]
[1733305102091,0.65366736,3723.0,3722.9,8.08333336]
[1733305109421,0.25121706,3723.0,3722.9,8.08333336]
[1733305113261,0.65374424,3723.0,3722.9,2.68607]
[1733305113464,4.27162039,3723.0,3722.9,3.82933033]
[1733305113672,3.15141255,3723.0,3722.9,3.82933033]
[1733305113972,4.83172431,3723.0,3722.6,2.68627]
[1733305114170,4.83172431,3723.0,3721.7,0.7719]
[1733305114171,1.12719926,3722.7,3721.7,0.7719]
[1733305114349,4.27865557,3722.6,3722.4,1.14326033]
[1733305114556,4.27865557,3722.5,3722.4,1.14326033]
[1733305114748,4.02746201,3722.5,3722.4,1.14326033]